bitfinex/quotes_ETHUSD_20250223
["timestamp","ask_amount","ask_price","bid_price","bid_amount"]
[1740333750962,0.15191,2822.3,2822.1,3.54338]
[1740333751292,0.15191,2822.3,2822.2,4.86853]
[1740333751680,0.15191,2822.3,2822.2,1.3252]
[1740333751843,0.15191,2822.3,2822.0,6.29671398]
[1740333752248,0.15191,2822.3,2822.1,3.54339]
[1740333754385,0.15191,2822.3,2822.2,0.11084796]
[1740333757808,0.15191,2822.3,2822.1,3.54337]
[1740333758177,0.15191,2822.3,2822.2,3.54333]
[1740333758810,0.15191,2822.3,2822.2,6.54333]
[1740333759009,0.15191,2822.3,2822.2,7.8273134]
[1740333759311,0.15191,2822.3,2822.2,9.6102134]
[1740333760085,6.5802,2823.6,2823.4,3.54182]
[1740333760297,5.25,2823.6,2823.5,0.261]
[1740333760712,5.25,2823.6,2823.0,1.2329]
[1740333760908,3.54203,2823.3,2823.1,0.261]
[1740333761215,3.54207,2823.2,2823.1,0.261]
[1740333761397,4.77727,2823.2,2823.1,0.261]
[1740333761585,10.02727,2823.2,2823.1,0.261]
[1740333761782,11.3842,2823.2,2823.1,0.261]
[1740333761982,6.60693,2823.2,2822.7,0.261]
[1740333762204,3.54222,2823.1,2822.7,0.261]
[1740333762421,4.7776,2823.0,2822.7,0.261]
[1740333763000,1.2352,2823.0,2822.7,0.261]
[1740333763199,3.54221,2823.1,2822.8,2.75313398]
[1740333763614,5.25,2823.2,2822.7,0.261]
[1740333763817,3.54255,2822.9,2822.7,0.261]
[1740333765797,3.54227,2823.1,2822.7,0.261]
[1740333766041,3.54233,2823.0,2822.7,0.261]
[1740333766690,3.54247,2822.9,2822.7,0.261]
[1740333767207,3.54258,2822.8,2822.7,0.261]
[1740333768139,4.88038,2822.8,2822.2,7.58309398]
[1740333768301,3.54283,2822.6,2822.2,5.15249238]
[1740333768517,3.54283,2822.6,2822.3,0.261]
[1740333769042,5.25,2822.7,2822.3,3.261]
[1740333769242,5.25,2822.7,2822.4,3.54302]
[1740333769394,5.25,2822.7,2822.3,6.8042]
[1740333769594,5.25,2822.7,2822.3,8.14541121]
[1740333770531,5.25,2822.7,2822.4,3.54306]
[1740333770731,5.25,2822.7,2822.4,4.88037]
[1740333771432,5.25,2822.7,2822.4,3.54297]
[1740333771636,5.25,2822.7,2822.4,3.54301]
[1740333771787,5.25,2822.7,2822.4,1.1126584]
[1740333771992,5.25,2822.7,2822.3,4.60221121]
[1740333771993,3.5427,2822.7,2822.3,3.261]
[1740333772238,10.10944,2822.9,2822.3,6.80415]
[1740333772935,3.54258,2822.8,2822.3,6.80415]
[1740333774237,3.54258,2822.8,2822.4,3.54306]
[1740333774388,6.5669,2822.9,2822.5,3.54289]
[1740333774793,10.10936,2822.9,2822.5,3.54289]
[1740333775092,10.10936,2822.9,2822.3,6.80414]
[1740333775093,3.54258,2822.8,2822.3,6.80414]
[1740333775292,3.54258,2822.8,2822.3,8.41801511]
[1740333775733,6.5669,2822.9,2822.3,8.41801511]
[1740333775938,3.54259,2822.8,2822.4,3.54301]
[1740333776113,3.54259,2822.8,2822.3,8.41801511]
[1740333776442,3.54284,2822.6,2822.3,4.87487511]
[1740333776638,3.54272,2822.7,2822.4,0.11083295]
[1740333776812,6.5669,2822.9,2822.4,0.11083295]
[1740333777004,10.10944,2822.9,2822.4,3.65381295]
[1740333777207,5.25,2822.9,2822.8,2.75313398]
[1740333777410,10.03327,2823.1,2822.8,2.75313398]
[1740333777663,3.54252,2822.9,2822.4,6.40859664]
[1740333777825,10.0333,2823.1,2822.4,6.40859664]
[1740333778017,3.54244,2823.0,2822.5,3.54287]
[1740333778217,3.54244,2823.0,2822.6,0.99514666]
[1740333778855,10.0333,2823.1,2822.6,0.99514666]
[1740333779043,3.54241,2823.0,2822.5,3.65370295]
[1740333779510,10.03327,2823.1,2822.6,3.54277]
[1740333780354,10.03327,2823.1,2822.7,0.11083295]
[1740333780557,3.54245,2822.9,2822.7,0.11083295]
[1740333780712,4.78758,2822.8,2822.7,0.11083295]
[1740333780911,10.03758,2822.8,2822.7,0.11083295]
[1740333781458,10.03758,2822.8,2822.7,0.81956584]
[1740333781955,10.03758,2822.8,2822.7,0.70873289]
[1740333782358,11.395583,2822.8,2822.7,0.70873289]
[1740333782555,4.8125,2822.7,2822.6,0.11083295]
[1740333783628,3.54308,2822.4,2822.3,0.261]
[1740333783863,6.5198,2822.4,2821.8,0.261]
[1740333784027,3.54354,2822.1,2821.8,0.261]
[1740333784233,3.54361,2822.0,2821.8,0.261]
[1740333784561,3.54383,2821.8,2821.7,0.4383301]
[1740333784744,5.25,2821.8,2821.7,0.261]
[1740333785866,5.25,2821.8,2821.7,4.31406155]
[1740333787455,5.25,2821.8,2821.7,4.49139165]
[1740333788031,5.25,2821.8,2821.7,4.48429378]
[1740333788526,5.25,2821.8,2821.7,8.56792776]
[1740333788945,5.25,2821.8,2821.7,11.56792776]
[1740333789528,5.25,2822.6,2822.2,1.3305]
[1740333789732,3.54296,2822.5,2822.1,3.54338]
[1740333789931,3.54285,2822.6,2822.1,3.54338]
[1740333790370,3.54285,2822.6,2822.1,7.08676]
[1740333790664,3.54285,2822.6,2822.2,3.65418654]
[1740333790858,8.79277,2822.7,2822.2,3.65418654]
[1740333791028,5.25,2822.7,2822.2,3.9814062]
[1740333791236,5.25,2822.7,2822.3,3.54313]
[1740333791460,3.54266,2822.8,2822.3,3.54313]
[1740333791461,8.79266,2822.8,2822.3,3.54313]
[1740333791661,5.25,2822.8,2822.4,3.54306]
[1740333791819,8.7926,2822.8,2822.5,0.261]
[1740333792161,3.54283,2822.6,2822.4,0.11086654]
[1740333792387,3.54295,2822.5,2822.4,0.11086654]
[1740333792661,4.87745,2822.5,2822.4,0.11086654]
[1740333793415,3.54346,2822.1,2822.0,0.261]
[1740333793658,10.12796,2822.1,2822.0,0.261]
[1740333794658,10.12796,2822.1,2822.0,0.98166064]
[1740333796530,6.5845,2822.1,2822.0,0.98166064]
[1740333796735,5.25,2822.1,2822.0,0.98166064]
[1740333796936,5.25,2822.1,2822.0,2.31216064]
[1740333797151,5.25,2822.1,2822.0,5.85574064]
[1740333797824,5.25,2822.1,2822.0,5.96660718]
[1740333798835,5.25,2822.3,2822.0,5.96660718]
[1740333799037,5.25,2822.3,2822.0,0.37186654]
[1740333799567,5.25,2822.3,2822.0,0.261]
[1740333799739,6.01511757,2822.3,2822.0,0.261]
[1740333800473,9.55833757,2822.3,2822.0,0.261]
[1740333801036,6.01511757,2822.3,2822.0,0.261]
[1740333801233,6.01511757,2822.3,2822.0,3.80455]
[1740333801438,5.25,2822.3,2822.0,3.80455]
[1740333801984,8.79321,2822.3,2822.0,0.261]
[1740333802450,5.25,2822.3,2822.1,0.11085494]
[1740333802651,8.79326,2822.3,2822.1,0.11085494]
[1740333802852,5.25,2822.3,2822.1,0.11085494]
[1740333803613,8.79323,2822.3,2822.1,0.11085494]
[1740333803879,3.54333,2822.2,2822.1,0.11085494]
[1740333804176,4.79383,2822.2,2822.1,0.11085494]
[1740333804376,10.04383,2822.2,2822.1,0.11085494]
[1740333805437,10.04383,2822.2,2821.6,0.261]
[1740333805438,3.54383,2821.8,2821.7,0.11085494]
[1740333805868,4.79433,2821.8,2821.7,0.11085494]
[1740333806036,5.628135,2821.8,2821.7,0.11085494]
[1740333807108,3.54421,2821.5,2821.4,0.11085494]
[1740333810913,8.7941,2821.6,2821.4,0.11085494]
[1740333811259,3.54421,2821.5,2821.4,0.11085494]
[1740333815979,3.54421,2821.5,2821.3,0.261]
[1740333816172,8.79409,2821.6,2821.3,0.261]
[1740333817680,5.25,2821.6,2821.5,4.80451]
[1740333819372,5.25,2821.6,2821.5,4.9818779]
[1740333819579,5.25,2821.6,2821.5,5.09273284]
[1740333821578,5.25,2821.6,2821.5,8.09273284]
[1740333822589,5.25,2822.7,2822.2,1.2748]
[1740333822740,5.25,2822.8,2822.3,0.261]
[1740333822941,1.2865,2823.1,2822.6,3.54279]
[1740333823142,1.2865,2823.4,2822.8,3.54248]
[1740333823560,1.2865,2823.4,2823.0,3.54221]
[1740333823759,4.82817,2823.6,2823.1,3.80312]
[1740333823972,4.82817,2823.6,2823.1,0.261]
[1740333824343,3.54177,2823.5,2823.1,0.261]
[1740333825291,1.2915,2823.9,2823.2,2.75313398]
[1740333825495,4.8327,2823.9,2823.4,3.54175]
[1740333825960,1.2915,2823.9,2823.5,3.54169]
[1740333826380,0.005,2823.9,2823.6,3.54157]
[1740333827050,0.005,2823.9,2823.2,2.75313398]
[1740333827051,0.005,2823.9,2823.5,3.54162]
[1740333827278,0.005,2823.9,2823.7,3.54143]
[1740333827786,0.005,2823.9,2823.5,3.895782]
[1740333828088,0.005,2823.9,2823.5,3.895762]
[1740333828284,0.005,2823.9,2823.6,3.54156]
[1740333829686,0.005,2823.9,2823.5,3.895862]
[1740333830401,3.54622,2823.9,2823.5,3.895862]
[1740333830602,3.54622,2823.9,2823.5,0.354162]
[1740333830774,0.005,2823.9,2823.3,3.0]
[1740333831097,3.54626,2823.9,2823.4,3.54173]
[1740333831303,0.005,2823.9,2823.3,3.0]
[1740333831461,0.005,2823.9,2823.6,3.54148]
[1740333832403,0.005,2823.9,2823.4,4.1171334]
[1740333832571,0.005,2823.9,2823.5,1.2676]
[1740333832775,0.005,2823.9,2823.6,3.54149]
[1740333833205,0.005,2823.9,2823.6,3.5415]
[1740333833371,0.005,2823.9,2823.7,0.48091]
[1740333833879,0.005,2823.9,2823.7,4.02235]
[1740333834703,0.005,2823.9,2823.8,3.54132]
[1740333835404,0.005,2823.9,2823.7,4.02235]
[1740333835599,0.005,2823.9,2823.8,3.54132]
[1740333835897,0.005,2823.9,2823.8,0.756367]
[1740333836882,0.005,2823.9,2823.8,0.261]
[1740333837405,0.005,2823.9,2823.4,0.5753134]
[1740333837622,3.54622,2823.9,2823.5,0.261]
[1740333837774,3.54157,2823.6,2823.5,0.261]
[1740333837975,4.7877,2823.5,2823.4,0.261]
[1740333838187,3.54192,2823.4,2822.9,4.02073398]
[1740333838375,3.54193,2823.4,2823.0,3.261]
[1740333838576,3.54148,2823.7,2823.0,3.261]
[1740333838890,3.54183,2823.4,2823.0,3.261]
[1740333839218,8.79137,2823.8,2823.3,3.0]
[1740333839427,5.25,2823.8,2823.6,3.54147]
[1740333839640,5.25,2823.8,2823.7,1.8970604]
[1740333839772,0.005,2823.9,2823.7,8.4385004]
[1740333839974,0.005,2823.9,2823.8,9.55545398]
[1740333840523,0.005,2823.9,2823.8,6.01413398]
[1740333840730,0.005,2823.9,2823.8,9.55545398]
[1740333840904,0.005,2823.9,2823.8,16.28868942]
[1740333841104,0.005,2823.9,2823.8,18.86066942]
[1740333841319,0.005,2823.9,2823.8,18.59966942]
[1740333841476,1e-05,2823.9,2823.8,18.86066942]
[1740333841817,1e-05,2823.9,2823.8,16.59943617]
[1740333842030,1e-05,2823.9,2823.8,21.29068617]
[1740333842321,0.151913,2825.1,2825.0,4.80742]
[1740333842530,0.151913,2825.1,2825.0,8.06842]
[1740333843423,0.151913,2825.1,2825.0,8.61842]
[1740333843727,0.101913,2825.1,2825.0,8.61842]
[1740333845032,0.101913,2825.1,2825.0,7.80742]
[1740333845238,0.101913,2825.1,2825.0,11.57788138]
[1740333845415,0.101913,2825.1,2825.0,15.66888138]
[1740333845615,3e-06,2825.1,2825.0,15.66888138]
[1740333846331,1e-05,2825.9,2825.8,13.38478796]
[1740333846628,1e-05,2825.9,2825.8,21.53772836]
[1740333846829,1e-05,2825.9,2825.8,31.25524836]
[1740333847215,1e-05,2825.9,2825.8,35.59098836]
[1740333847531,1e-05,2825.9,2825.8,28.50211438]
[1740333847735,1e-05,2825.9,2825.8,21.00211438]
[1740333847936,1e-05,2825.9,2825.8,14.94295398]
[1740333848237,1e-05,2825.9,2825.8,15.05365087]
[1740333848635,1e-05,2825.9,2825.8,11.51483087]
[1740333848803,1e-05,2825.9,2825.8,15.05365087]
[1740333849939,1e-05,2825.9,2825.8,14.94295398]
[1740333850246,0.70604077,2825.9,2825.8,3.261]
[1740333850439,4.24473077,2825.9,2825.8,0.261]
[1740333850595,3.5387,2825.9,2825.8,0.261]
[1740333851198,1e-05,2825.9,2825.8,0.261]
[1740333851544,1e-05,2825.9,2825.8,0.70948363]
[1740333851545,3.5387,2825.9,2825.8,0.70948363]
[1740333852224,3.53886,2825.8,2825.5,0.261]
[1740333852534,3.53907,2825.6,2825.5,0.261]
[1740333853243,3.53886,2825.8,2825.5,0.261]
[1740333853942,1.33711,2825.9,2825.2,3.0]
[1740333854118,3.53907,2825.6,2825.5,0.261]
[1740333855032,6.58711,2825.9,2825.5,0.261]
[1740333855333,5.25001,2825.9,2825.6,0.6553364]
[1740333855506,5.25001,2825.9,2825.6,4.1943864]
[1740333855842,8.78871,2825.9,2825.5,0.261]
[1740333856003,5.25001,2825.9,2825.5,3.80019]
[1740333856203,5.25001,2825.9,2825.5,0.261]
[1740333856411,3.53884,2825.8,2825.5,0.3717046]
[1740333856818,3.539,2825.7,2825.5,0.3717046]
[1740333857044,4.87617,2825.6,2825.5,0.3717046]
[1740333857851,6.5871,2825.6,2824.9,3.1107046]
[1740333858049,3.53958,2825.2,2825.0,0.261]
[1740333858215,3.53958,2825.2,2825.1,0.261]
[1740333858415,3.5394,2825.4,2825.1,0.261]
[1740333858633,3.53957,2825.2,2825.1,0.261]
[1740333858834,1e-05,2825.9,2825.2,0.55]
[1740333859027,1e-05,2825.9,2825.6,6.29213398]
[1740333859712,3.53903,2825.7,2825.1,2.02567506]
[1740333859952,1.3371,2825.8,2825.2,0.261]
[1740333860153,4.87598,2825.8,2825.3,3.53941]
[1740333860956,1.3371,2825.8,2825.4,3.53928]
[1740333861361,1.3371,2825.8,2825.4,3.53932]
[1740333861543,4.87593,2825.8,2825.2,0.261]
[1740333861856,1.3371,2825.8,2825.5,3.53913]
[1740333862452,1.3371,2825.8,2825.4,3.5393]
[1740333862759,1.3371,2825.8,2825.4,7.07856]
[1740333863060,4.87599,2825.8,2825.2,3.80047]
[1740333863355,10.12599,2825.8,2825.2,0.261]
[1740333863659,13.66491,2825.8,2825.3,3.53942]
[1740333863966,10.12599,2825.8,2825.2,0.261]
[1740333864151,3.53913,2825.6,2825.2,0.261]
[1740333864460,3.53895,2825.7,2825.3,0.11072272]
[1740333865472,3.53916,2825.6,2825.3,0.11072272]
[1740333866285,4.905464,2825.7,2825.3,0.11072272]
[1740333866428,3.53897,2825.7,2825.3,0.11072272]
[1740333866633,10.12592,2825.8,2825.3,3.65009272]
[1740333867178,10.12592,2825.8,2825.4,0.11072272]
[1740333867470,13.66481,2825.8,2825.4,0.11072272]
[1740333867675,10.12592,2825.8,2825.4,0.11072272]
[1740333867974,13.66484,2825.8,2825.4,0.11072272]
[1740333868271,10.12592,2825.8,2825.4,0.11072272]
[1740333868566,6.5871,2825.8,2825.4,3.64994272]
[1740333868766,6.5871,2825.8,2825.5,0.11072272]
[1740333869070,3.53907,2825.6,2825.5,0.11072272]
[1740333870078,3.53907,2825.6,2825.5,0.28787908]
[1740333870531,3.53907,2825.6,2825.5,0.99500203]
[1740333872329,6.28333754,2825.6,2825.5,0.99500203]
[1740333873871,11.53333754,2825.6,2825.5,0.99500203]
[1740333874163,3.53963,2825.2,2824.7,3.54019]
[1740333874327,3.53988,2825.0,2824.6,0.261]
[1740333874528,3.54006,2824.9,2824.6,0.261]
[1740333874729,4.84828,2825.0,2824.6,0.261]
[1740333874967,3.54016,2824.8,2824.6,0.261]
[1740333876170,3.54019,2824.7,2824.6,0.261]
[1740333876967,3.54011,2824.8,2824.6,0.261]
[1740333877371,3.54019,2824.7,2824.5,0.261]
[1740333877534,3.54042,2824.6,2824.5,0.261]
[1740333877731,8.79042,2824.6,2824.5,0.261]
[1740333878382,5.25,2824.6,2824.5,0.261]
[1740333878598,8.79032,2824.6,2824.5,0.261]
[1740333879986,8.79032,2824.6,2824.0,11.95443398]
[1740333879987,1.2882,2824.5,2824.0,7.949]
[1740333880272,3.54095,2824.1,2824.0,7.949]
[1740333880474,5.25,2824.4,2824.0,3.54098]
[1740333880778,8.79057,2824.4,2824.0,3.54098]
[1740333881150,5.25,2824.4,2824.0,7.08199]
[1740333881472,3.54089,2824.2,2823.9,0.261]
[1740333881675,3.54098,2824.1,2823.9,0.261]
[1740333881980,5.25,2824.4,2823.9,0.261]
[1740333881981,3.54082,2824.2,2823.9,0.261]
[1740333882655,0.71191859,2824.1,2823.9,0.261]
[1740333882976,3.54076,2824.3,2823.9,0.261]
[1740333883149,8.79062,2824.4,2823.9,0.261]
[1740333883480,3.54072,2824.3,2823.9,0.261]
[1740333883639,8.79062,2824.4,2823.9,3.80216]
[1740333883841,8.79062,2824.4,2824.0,3.54107]
[1740333884171,3.54083,2824.2,2823.9,0.261]
[1740333884579,8.79062,2824.4,2823.9,0.261]
[1740333884779,13.03214021,2824.4,2823.9,3.80219]
[1740333884979,9.49148021,2824.4,2823.9,0.261]
[1740333885278,3.5407,2824.3,2823.9,3.80211]
[1740333886279,3.5407,2824.3,2823.9,0.261]
[1740333887860,3.54088,2824.2,2823.9,0.261]
[1740333888594,7.15213353,2824.4,2823.9,0.261]
[1740333888890,3.54132,2823.8,2823.7,0.70553875]
[1740333889091,3.54145,2823.7,2823.6,0.261]
[1740333890159,4.7761,2824.0,2823.1,4.2314]
[1740333890401,3.54214,2823.2,2822.8,1.2314]
[1740333890569,3.54214,2823.2,2823.1,0.11080483]
[1740333891101,3.54196,2823.3,2823.1,0.11080483]
[1740333891303,3.54196,2823.3,2823.1,0.37180483]
[1740333891510,7.084,2823.3,2823.1,0.37180483]
[1740333891680,3.54196,2823.3,2823.1,0.261]
[1740333892098,5.25,2823.6,2823.1,0.261]
[1740333892411,3.54201,2823.3,2823.1,0.261]
[1740333892615,3.54207,2823.2,2823.1,0.261]
[1740333892974,3.54207,2823.2,2822.8,4.2314]
[1740333893319,3.54207,2823.2,2822.9,0.261]
[1740333893800,8.79207,2823.2,2822.9,0.261]
[1740333894244,3.54232,2823.1,2822.7,0.70272952]
[1740333894562,3.54232,2823.1,2822.8,0.261]
[1740333895322,3.54232,2823.1,2822.7,0.70272952]
[1740333895323,3.54258,2822.8,2822.7,0.70272952]
[1740333895527,4.76408,2822.8,2822.7,0.261]
[1740333895851,3.54283,2822.6,2822.5,7.95]
[1740333896023,3.54283,2822.6,2822.5,8.211]
[1740333896656,5.25,2822.7,2822.5,8.211]
[1740333897035,5.25,2822.7,2822.6,4.88923]
[1740333899775,8.7922,2823.1,2822.7,3.5427]
[1740333900343,5.25,2823.1,2822.7,3.54258]
[1740333900742,5.25,2823.1,2822.8,0.261]
[1740333900940,5.25,2823.1,2822.9,0.261]
[1740333903376,5.25,2823.1,2822.9,3.80338]
[1740333903586,5.25,2823.1,2822.9,0.261]
[1740333903743,5.25,2823.1,2823.0,0.261]
[1740333904496,8.7922,2823.1,2823.0,0.261]
[1740333905288,6.55483251,2823.1,2822.8,0.72628233]
[1740333905489,3.5427,2822.7,2822.6,0.261]
[1740333905696,8.7927,2822.7,2822.6,0.261]
[1740333905912,5.25,2822.7,2822.6,0.261]
[1740333906101,5.25,2822.7,2822.5,8.211]
[1740333906609,4.81023,2822.6,2822.5,8.211]
[1740333906812,6.170523,2822.6,2822.5,8.211]
[1740333906984,3.54303,2822.5,2822.4,0.261]
[1740333907307,3.54303,2822.5,2821.7,2.75313398]
[1740333907308,4.81087,2822.1,2821.7,0.261]
[1740333907477,3.54404,2821.7,2821.4,1.3047]
[1740333907676,3.54404,2821.7,2821.5,0.261]
[1740333907677,3.54413,2821.6,2821.5,0.261]
[1740333907880,4.81153,2821.6,2821.5,0.261]
[1740333908201,3.54441,2821.4,2821.1,7.956]
[1740333908405,3.54421,2821.5,2821.1,8.217]
[1740333908966,2.627957,2821.6,2821.1,8.217]
[1740333908967,1.2674,2821.6,2821.1,11.76168]
[1740333909215,1.2674,2821.6,2821.3,3.54438]
[1740333909706,5.25,2821.7,2821.4,7.08854]
[1740333909919,5.25,2821.7,2821.6,3.54408]
[1740333910086,5.25,2821.7,2821.6,6.54408]
[1740333910504,5.25,2821.7,2821.6,6.65494197]
[1740333910972,5.25,2821.7,2821.6,3.11086197]
[1740333911371,5.25,2821.7,2821.6,3.37186197]
[1740333911607,3.54396,2821.7,2821.6,0.261]
[1740333911764,3.54411,2821.6,2821.4,0.11086197]
[1740333911971,3.54411,2821.6,2821.5,0.261]
[1740333912198,4.777719,2821.7,2821.5,0.261]
[1740333912400,1.233759,2821.7,2821.5,0.261]
[1740333912607,3.54408,2821.6,2821.5,0.261]
[1740333912802,3.54421,2821.5,2821.4,0.37186197]
[1740333913168,3.54421,2821.5,2821.4,0.261]
[1740333913813,3.54408,2821.6,2821.4,0.261]
[1740333913986,1.3443,2821.8,2821.4,3.80527]
[1740333914186,6.5943,2822.2,2821.8,3.54373]
[1740333914390,6.5943,2822.5,2821.6,3.0]
[1740333914601,3.54315,2822.4,2821.8,3.54373]
[1740333914917,3.54315,2822.4,2821.9,3.54368]
[1740333915099,3.54315,2822.4,2821.9,3.54364]
[1740333915611,3.54321,2822.3,2821.8,3.0]
[1740333915774,3.54354,2822.1,2821.6,3.65492922]
[1740333915970,7.08708,2822.1,2821.6,3.65492922]
[1740333916276,3.54354,2822.1,2821.7,3.0]
[1740333916694,1.368037,2822.4,2821.8,0.261]
[1740333916929,3.54351,2822.1,2821.8,0.261]
[1740333917139,1.3443,2822.0,2821.8,0.261]
[1740333917807,3.54371,2821.9,2821.8,0.261]
[1740333919454,3.54383,2821.8,2821.7,0.11085922]
[1740333919996,8.79371,2821.9,2821.7,0.11085922]
[1740333920258,1.013801,2821.8,2821.5,3.54421]
[1740333920547,1.013801,2821.8,2821.4,0.11085922]
[1740333920841,4.557661,2821.8,2821.4,0.11085922]
[1740333921042,1.013801,2821.8,2821.3,3.80538]
[1740333921193,1.013801,2821.8,2821.3,0.261]
[1740333921398,3.54423,2821.5,2821.3,0.261]
[1740333921615,8.79423,2821.5,2821.3,0.261]
[1740333921809,5.25,2821.5,2821.2,3.0]
[1740333922150,5.25,2821.5,2821.3,0.261]
[1740333922301,5.25,2821.5,2821.3,3.80543]
[1740333922826,5.25,2821.5,2821.4,0.71102943]
[1740333923342,5.25,2821.5,2821.4,8.56225943]
[1740333923540,5.25,2821.5,2821.4,13.42765651]
[1740333923844,5.25,2821.5,2821.4,13.53853485]
[1740333924844,5.25,2821.5,2821.4,13.71593626]
[1740333926314,5.25,2822.3,2822.1,3.54336]
[1740333926513,6.16027102,2822.5,2822.2,0.261]
[1740333927123,3.54308,2822.4,2822.2,0.261]
[1740333928002,9.70323102,2822.5,2822.2,0.261]
[1740333928318,3.54314,2822.4,2822.2,0.261]
[1740333928518,4.6449711,2822.4,2822.2,0.261]
[1740333928852,3.5432,2822.3,2822.2,0.261]
[1740333929362,3.54333,2822.2,2822.1,0.11087834]
[1740333929548,4.88386,2822.1,2822.0,0.261]
[1740333929720,6.080899,2822.1,2822.0,0.261]
[1740333930341,4.88386,2822.1,2822.0,0.261]
[1740333932239,4.88386,2822.1,2822.0,0.43019037]
[1740333932439,10.13386,2822.1,2822.0,0.43019037]
[1740333932645,10.13386,2822.1,2822.0,0.261]
[1740333932949,10.13386,2822.1,2821.8,0.1108666]
[1740333933106,11.501581,2822.1,2821.8,0.1108666]
[1740333933304,7.958121,2822.1,2821.9,0.16593145]
[1740333934010,11.501691,2822.1,2821.9,0.16593145]
[1740333934347,3.54358,2822.0,2821.9,0.27679805]
[1740333934526,11.501691,2822.1,2821.9,0.27679805]
[1740333935323,11.501681,2822.1,2821.9,0.27679805]
[1740333935523,4.6937481,2822.0,2821.9,0.27679805]
[1740333937257,1.1501681,2822.0,2821.9,0.27679805]
[1740333937867,5.25,2822.1,2821.9,0.27679805]
[1740333938063,8.79347,2822.1,2822.0,0.261]
[1740333938354,8.79347,2822.1,2822.0,0.42671684]
[1740333938924,8.79347,2822.1,2822.0,0.16571684]
[1740333939661,3.54364,2822.0,2821.8,0.261]
[1740333939985,8.79347,2822.1,2822.0,0.16571684]
[1740333940189,3.54364,2822.0,2821.8,0.261]
[1740333940882,3.54371,2821.9,2821.8,0.261]
[1740333941262,10.027162,2822.1,2821.8,0.261]
[1740333941794,10.027162,2822.1,2821.8,0.37187104]
[1740333943696,10.027162,2822.1,2821.9,0.11087104]
[1740333944495,6.483682,2822.1,2821.8,3.80481]
[1740333945094,10.027152,2822.1,2821.8,0.261]
[1740333945618,5.25,2822.1,2821.8,3.80483]
[1740333945779,5.25,2822.1,2822.0,3.54358]
[1740333947265,5.25,2822.1,2822.0,3.65443837]
[1740333947562,5.25,2822.6,2822.4,3.54308]
[1740333947762,5.25,2822.6,2822.5,3.54295]
[1740333948462,5.25,2822.6,2822.4,3.0]
[1740333948858,5.25,2822.6,2822.5,0.11085837]
[1740333949804,6.129258,2822.6,2822.5,0.11085837]
[1740333949974,10.973688,2822.6,2822.5,0.11085837]
[1740333952007,6.129258,2822.6,2821.7,0.11085837]
[1740333952208,4.80742,2821.9,2821.7,0.11085837]
[1740333952515,3.54383,2821.8,2821.7,0.11085837]
[1740333952849,8.35122,2821.9,2821.7,0.11085837]
[1740333953200,10.05742,2821.9,2821.7,0.11085837]
[1740333953403,10.05742,2821.9,2821.8,0.11085837]
[1740333955695,6.5137,2821.9,2821.6,0.261]
[1740333955902,3.54385,2821.8,2821.6,0.261]
[1740333957809,3.54421,2821.5,2821.4,0.43838983]
[1740333958011,8.79421,2821.5,2821.4,0.261]
[1740333958948,8.79421,2821.5,2821.4,0.41464922]
[1740333959700,8.79421,2821.5,2821.4,0.52553046]
[1740333959897,11.31694,2821.5,2821.4,0.26453046]
[1740333960239,11.31694,2821.5,2821.4,0.11088124]
[1740333961042,3.54466,2821.2,2821.0,0.261]
[1740333961402,3.54446,2821.3,2821.0,0.261]
[1740333961723,3.5446,2821.2,2821.0,0.261]
[1740333962297,3.5446,2821.2,2821.1,0.11089468]
[1740333964844,3.5446,2821.2,2821.0,0.11089468]
[1740333965008,5.25,2821.2,2821.0,0.11089468]
[1740333965440,5.25,2821.2,2821.1,0.47957127]
[1740333965948,8.79459,2821.2,2821.1,0.47957127]
[1740333966151,5.25,2821.2,2821.1,0.59046595]
[1740333967542,5.25,2821.2,2821.1,0.47957127]
[1740333968048,5.25,2821.2,2821.1,0.14944633]
[1740333968640,8.79459,2821.2,2821.0,0.44101962]
[1740333968844,8.79459,2821.2,2821.1,0.14944633]
[1740333969137,11.27882772,2821.2,2821.1,0.14944633]
[1740333969510,4.84611,2821.1,2821.0,0.11089468]
[1740333969710,1.3014,2821.1,2821.0,0.11089468]
[1740333969916,4.84611,2821.1,2821.0,0.26021402]
[1740333970531,4.84611,2821.1,2821.0,0.14931934]
[1740333970731,6.33621377,2821.1,2821.0,0.14931934]
[1740333970944,3.54512,2820.8,2820.5,0.59112494]
[1740333971141,5.25,2820.7,2820.5,0.59112494]
[1740333971330,8.79525,2820.7,2820.5,0.59112494]
[1740333971665,3.54534,2820.6,2820.5,0.261]
[1740333971856,8.79523,2820.7,2820.5,0.261]
[1740333972650,5.25,2820.7,2820.6,6.54534]
[1740333972856,5.25,2820.7,2820.6,7.76524]
[1740333973065,5.25,2820.7,2820.6,3.0]
[1740333973662,5.25,2820.7,2820.6,3.28836119]
[1740333974373,5.25,2820.7,2820.6,0.28836119]
[1740333974560,5.25,2820.7,2820.6,3.83370119]
[1740333974864,5.25,2820.7,2820.6,3.54534]
[1740333975054,5.25,2820.7,2820.6,3.87546494]
[1740333975568,5.25,2820.7,2820.6,8.09536494]
[1740333976761,5.25,2820.7,2820.6,9.57860462]
[1740333976968,5.25,2821.3,2821.2,3.54459]